[Event "*** Titled Tuesday Blitz"]
[Site "Chess.com"]
[Date "2021.03.16"]
[Round "1"]
[White "PattyCastillo"]
[Black "bait_or_mate"]
[Result "0-1"]
[WhiteElo "2029"]
[BlackElo "2501"]
[TimeControl "180+1"]
[EndTime "10:06:05 PDT"]
[Termination "bait_or_mate won by resignation"]

1. d4 {[%clk 0:03:00.9]} 1... Nf6 {[%clk 0:02:59.5]} 2. Nf3 {[%clk 0:03:00.3]}
2... d5 {[%clk 0:02:59.5]} 3. e3 {[%clk 0:03:00.4]} 3... c6 {[%clk 0:02:57.2]}
4. Bd3 {[%clk 0:02:59]} 4... Bg4 {[%clk 0:02:56.9]} 5. Nbd2 {[%clk 0:02:56.8]}
5... Nbd7 {[%clk 0:02:56.6]} 6. O-O {[%clk 0:02:54.6]} 6... e6 {[%clk 0:02:56]}
7. b3 {[%clk 0:02:54.5]} 7... Bd6 {[%clk 0:02:55.9]} 8. Bb2 {[%clk 0:02:54.7]}
8... O-O {[%clk 0:02:56.4]} 9. Qb1 {[%clk 0:02:50.2]} 9... Re8 {[%clk
0:02:53.7]} 10. Ne5 {[%clk 0:02:48.7]} 10... Bh5 {[%clk 0:02:49.6]} 11. c4
{[%clk 0:02:45.8]} 11... Bg6 {[%clk 0:02:43.5]} 12. f4 {[%clk 0:02:01.2]} 12...
c5 {[%clk 0:02:37.6]} 13. Qc2 {[%clk 0:01:55.6]} 13... Rc8 {[%clk 0:02:36.2]}
14. Rac1 {[%clk 0:01:54.5]} 14... Qe7 {[%clk 0:02:13.5]} 15. Qb1 {[%clk
0:01:47]} 15... Red8 {[%clk 0:01:57.6]} 16. Ndf3 {[%clk 0:01:33.8]} 16... Bxd3
{[%clk 0:01:31.6]} 17. Qxd3 {[%clk 0:01:24.5]} 17... Ne4 {[%clk 0:01:30.1]} 18.
Nxd7 {[%clk 0:01:09.7]} 18... Rxd7 {[%clk 0:01:26.7]} 19. cxd5 {[%clk
0:01:08.5]} 19... exd5 {[%clk 0:01:25]} 20. Ne5 {[%clk 0:01:06.6]} 20... Bxe5
{[%clk 0:01:24.1]} 21. fxe5 {[%clk 0:01:06]} 21... Rc6 {[%clk 0:01:15.4]} 22.
Ba3 {[%clk 0:00:59.7]} 22... b6 {[%clk 0:01:14.2]} 23. Rf3 {[%clk 0:00:50.7]}
23... Qe6 {[%clk 0:01:07.4]} 24. Rcf1 {[%clk 0:00:47.9]} 24... Qg4 {[%clk
0:01:06.6]} 25. Bc1 {[%clk 0:00:23.8]} 25... Rg6 {[%clk 0:01:02.8]} 26. Qe2
{[%clk 0:00:14.8]} 26... Ng5 {[%clk 0:00:54.7]} 27. Rg3 {[%clk 0:00:12.6]} 27...
Qxe2 {[%clk 0:00:53.5]} 0-1

[Event "*** Titled Tuesday Blitz"]
[Site "Chess.com"]
[Date "2021.03.16"]
[Round "1"]
[White "Sanyura"]
[Black "Pantata007"]
[Result "1-0"]
[WhiteElo "2638"]
[BlackElo "2326"]
[TimeControl "180+1"]
[EndTime "10:06:10 PDT"]
[Termination "Sanyura won on time"]

1. e4 {[%clk 0:02:59.4]} 1... e5 {[%clk 0:02:52.6]} 2. Nf3 {[%clk 0:02:58.7]}
2... Nc6 {[%clk 0:02:41.6]} 3. Bb5 {[%clk 0:02:58.2]} 3... a6 {[%clk 0:02:30.3]}
4. Ba4 {[%clk 0:02:56.3]} 4... Nf6 {[%clk 0:01:49.6]} 5. O-O {[%clk 0:02:56.2]}
5... Be7 {[%clk 0:01:49.1]} 6. Re1 {[%clk 0:02:56]} 6... b5 {[%clk 0:01:48.9]}
7. Bb3 {[%clk 0:02:56.2]} 7... O-O {[%clk 0:01:48.9]} 8. h3 {[%clk 0:02:55.7]}
8... Bb7 {[%clk 0:01:47.1]} 9. d4 {[%clk 0:02:48.8]} 9... Nxd4 {[%clk
0:01:35.9]} 10. Nxd4 {[%clk 0:02:47.9]} 10... exd4 {[%clk 0:01:35.5]} 11. e5
{[%clk 0:02:48.3]} 11... Ne4 {[%clk 0:01:29.8]} 12. Qg4 {[%clk 0:02:34.3]} 12...
d5 {[%clk 0:00:37.2]} 13. exd6 {[%clk 0:02:23.3]} 13... Nxd6 {[%clk 0:00:34.2]}
14. Bh6 {[%clk 0:02:21.9]} 14... Bf6 {[%clk 0:00:33.6]} 15. Nd2 {[%clk
0:02:16.2]} 15... c5 {[%clk 0:00:33.1]} 16. c3 {[%clk 0:02:07.7]} 16... dxc3
{[%clk 0:00:28.2]} 17. bxc3 {[%clk 0:02:06.8]} 17... c4 {[%clk 0:00:26]} 18. Bc2
{[%clk 0:02:06.5]} 18... Bxc3 {[%clk 0:00:24.7]} 19. Rad1 {[%clk 0:02:06.2]}
19... Kh8 {[%clk 0:00:17.6]} 20. Bg5 {[%clk 0:01:46.2]} 20... Qb6 {[%clk
0:00:13.9]} 21. Qh4 {[%clk 0:01:39]} 21... g6 {[%clk 0:00:12.9]} 22. Nf3 {[%clk
0:01:35.5]} 22... Bxe1 {[%clk 0:00:09.1]} 23. Bf6+ {[%clk 0:01:35.6]} 23... Kg8
{[%clk 0:00:06.8]} 24. Qh6 {[%clk 0:01:25.2]} 24... Ne8 {[%clk 0:00:05.8]} 25.
Be7 {[%clk 0:01:20.8]} 25... Qxf2+ {[%clk 0:00:03.6]} 26. Kh1 {[%clk 0:01:21.1]}
26... Nc7 {[%clk 0:00:02.3]} 27. Rxe1 {[%clk 0:01:05.2]} 1-0

[Event "*** Titled Tuesday Blitz"]
[Site "Chess.com"]
[Date "2021.03.16"]
[Round "1"]
[White "AvitalBor"]
[Black "ChelsieMonica"]
[Result "1-0"]
[WhiteElo "2650"]
[BlackElo "2343"]
[TimeControl "180+1"]
[EndTime "10:06:12 PDT"]
[Termination "AvitalBor won by resignation"]

1. c4 {[%clk 0:02:58.3]} 1... Nf6 {[%clk 0:02:58.6]} 2. Nc3 {[%clk 0:02:57.9]}
2... e5 {[%clk 0:02:57.5]} 3. Nf3 {[%clk 0:02:56.7]} 3... Nc6 {[%clk 0:02:57.1]}
4. e3 {[%clk 0:02:56]} 4... d6 {[%clk 0:02:54.9]} 5. d4 {[%clk 0:02:55.8]} 5...
Be7 {[%clk 0:02:54.7]} 6. Be2 {[%clk 0:02:55.6]} 6... exd4 {[%clk 0:02:54.7]} 7.
Nxd4 {[%clk 0:02:54.4]} 7... O-O {[%clk 0:02:55.6]} 8. Nxc6 {[%clk 0:02:53.6]}
8... bxc6 {[%clk 0:02:55.8]} 9. O-O {[%clk 0:02:54.3]} 9... d5 {[%clk
0:02:51.9]} 10. Bf3 {[%clk 0:02:52.8]} 10... Be6 {[%clk 0:02:51.5]} 11. Qc2
{[%clk 0:02:52.3]} 11... Qc8 {[%clk 0:02:49.1]} 12. Rd1 {[%clk 0:02:51.6]} 12...
Rd8 {[%clk 0:02:49.2]} 13. b3 {[%clk 0:02:49.8]} 13... a5 {[%clk 0:02:46.7]} 14.
Na4 {[%clk 0:02:48.7]} 14... Ne4 {[%clk 0:02:34.7]} 15. Bb2 {[%clk 0:02:46.2]}
15... f5 {[%clk 0:02:32.3]} 16. cxd5 {[%clk 0:02:43]} 16... cxd5 {[%clk
0:02:30]} 17. Rac1 {[%clk 0:02:43.5]} 17... Ra7 {[%clk 0:02:21.1]} 18. Bd4
{[%clk 0:02:43.4]} 18... Rb7 {[%clk 0:02:18.1]} 19. Nc5 {[%clk 0:02:42.7]} 19...
Bxc5 {[%clk 0:02:13.9]} 20. Bxc5 {[%clk 0:02:42.9]} 20... Rd7 {[%clk 0:02:04.4]}
21. Qb2 {[%clk 0:02:38.7]} 21... a4 {[%clk 0:01:59.2]} 22. b4 {[%clk 0:02:38.6]}
22... Qb8 {[%clk 0:01:53.8]} 23. a3 {[%clk 0:02:37.6]} 23... Rb5 {[%clk
0:01:27.7]} 24. Qd4 {[%clk 0:02:24.5]} 24... c6 {[%clk 0:01:22.4]} 25. Be2
{[%clk 0:02:21.3]} 25... Rbb7 {[%clk 0:00:59.4]} 26. Ba6 {[%clk 0:02:20.4]}
26... Nxc5 {[%clk 0:00:43.4]} 27. Rxc5 {[%clk 0:02:17.7]} 27... Rb6 {[%clk
0:00:43.7]} 28. Be2 {[%clk 0:02:17.3]} 28... g5 {[%clk 0:00:41.8]} 29. Rdc1
{[%clk 0:02:16.9]} 29... Qd6 {[%clk 0:00:36.2]} 30. Ra5 {[%clk 0:02:13.6]} 30...
Rb8 {[%clk 0:00:29.9]} 31. Rxa4 {[%clk 0:02:13.5]} 31... f4 {[%clk 0:00:28.9]}
32. Ra6 {[%clk 0:02:13.4]} 32... Rc7 {[%clk 0:00:28.2]} 33. exf4 {[%clk
0:02:05.2]} 33... gxf4 {[%clk 0:00:29.1]} 34. Bf3 {[%clk 0:02:02.2]} 34... Rbc8
{[%clk 0:00:27.1]} 35. h3 {[%clk 0:02:01.2]} 35... Qd7 {[%clk 0:00:27.1]} 36.
Qxf4 {[%clk 0:02:00.5]} 36... Rf8 {[%clk 0:00:26.7]} 37. Qg3+ {[%clk 0:01:57.8]}
37... Kh8 {[%clk 0:00:27]} 38. b5 {[%clk 0:01:56.9]} 38... d4 {[%clk 0:00:18.7]}
39. Raxc6 {[%clk 0:01:54.1]} 39... Rxc6 {[%clk 0:00:18.3]} 40. bxc6 {[%clk
0:01:54.5]} 40... Qe7 {[%clk 0:00:17.9]} 41. c7 {[%clk 0:01:51.2]} 41... Bc8
{[%clk 0:00:17.5]} 42. Bg4 {[%clk 0:01:45.2]} 42... d3 {[%clk 0:00:16.4]} 43.
Qxd3 {[%clk 0:01:41.6]} 43... Bb7 {[%clk 0:00:13.5]} 44. Qd4+ {[%clk 0:01:40.2]}
44... Kg8 {[%clk 0:00:14.1]} 45. c8=Q {[%clk 0:01:35.5]} 45... Bxc8 {[%clk
0:00:13.9]} 46. Bxc8 {[%clk 0:01:34.5]} 1-0

[Event "*** Titled Tuesday Blitz"]
[Site "Chess.com"]
[Date "2021.03.16"]
[Round "1"]
[White "Vasily85"]
[Black "Gabix_94"]
[Result "0-1"]
[WhiteElo "2420"]
[BlackElo "2802"]
[TimeControl "180+1"]
[EndTime "10:06:14 PDT"]
[Termination "Gabix_94 won by checkmate"]

1. d4 {[%clk 0:02:40.4]} 1... Nf6 {[%clk 0:02:58.7]} 2. Bg5 {[%clk 0:02:39.9]}
2... Ne4 {[%clk 0:02:55.3]} 3. Bf4 {[%clk 0:02:39.7]} 3... d5 {[%clk 0:02:55.9]}
4. e3 {[%clk 0:02:39.7]} 4... c5 {[%clk 0:02:53.8]} 5. Bd3 {[%clk 0:02:39.6]}
5... Nf6 {[%clk 0:02:54.2]} 6. c3 {[%clk 0:02:40]} 6... Nc6 {[%clk 0:02:53.9]}
7. Nd2 {[%clk 0:02:40]} 7... Bg4 {[%clk 0:02:54.2]} 8. Ngf3 {[%clk 0:02:39.3]}
8... e6 {[%clk 0:02:53.7]} 9. O-O {[%clk 0:02:34.3]} 9... cxd4 {[%clk
0:02:51.8]} 10. exd4 {[%clk 0:02:34]} 10... Bd6 {[%clk 0:02:51.8]} 11. Bxd6
{[%clk 0:02:31.5]} 11... Qxd6 {[%clk 0:02:52.7]} 12. Qb3 {[%clk 0:02:31.7]}
12... O-O {[%clk 0:02:50.2]} 13. Rfe1 {[%clk 0:02:27.2]} 13... Nd7 {[%clk
0:02:43.1]} 14. h3 {[%clk 0:02:23.2]} 14... Bh5 {[%clk 0:02:42.1]} 15. Rac1
{[%clk 0:01:56.7]} 15... Rab8 {[%clk 0:02:40.2]} 16. Qc2 {[%clk 0:01:54.2]}
16... Bg6 {[%clk 0:02:38.7]} 17. Bxg6 {[%clk 0:01:52.5]} 17... hxg6 {[%clk
0:02:39.6]} 18. Nf1 {[%clk 0:01:32.4]} 18... b5 {[%clk 0:02:37.1]} 19. a3 {[%clk
0:01:29.4]} 19... a5 {[%clk 0:02:35.6]} 20. b4 {[%clk 0:01:15.3]} 20... Rfc8
{[%clk 0:02:34.8]} 21. Qb2 {[%clk 0:01:12.3]} 21... Nb6 {[%clk 0:02:33.2]} 22.
N1d2 {[%clk 0:01:12.3]} 22... Na4 {[%clk 0:02:31.7]} 23. Qb3 {[%clk 0:01:11.6]}
23... axb4 {[%clk 0:02:24.8]} 24. axb4 {[%clk 0:01:12.5]} 24... Ne7 {[%clk
0:02:23.2]} 25. Red1 {[%clk 0:01:07.7]} 25... Nb6 {[%clk 0:02:21.1]} 26. Ne1
{[%clk 0:01:07.3]} 26... Nc4 {[%clk 0:02:19.3]} 27. Nd3 {[%clk 0:01:06.9]} 27...
Ra8 {[%clk 0:02:16.5]} 28. Qc2 {[%clk 0:01:00.9]} 28... Ra3 {[%clk 0:02:08.3]}
29. Ra1 {[%clk 0:00:55.1]} 29... Rca8 {[%clk 0:01:58.8]} 30. Rxa3 {[%clk
0:00:51.7]} 30... Rxa3 {[%clk 0:01:59.7]} 31. Nc5 {[%clk 0:00:49.2]} 31... Nf5
{[%clk 0:01:54.2]} 32. Nxc4 {[%clk 0:00:45.8]} 32... dxc4 {[%clk 0:01:53.1]} 33.
Qb2 {[%clk 0:00:46]} 33... Ra8 {[%clk 0:01:53.3]} 34. Ra1 {[%clk 0:00:45.3]}
34... Re8 {[%clk 0:01:53.7]} 35. Ra6 {[%clk 0:00:44.3]} 35... Qd5 {[%clk
0:01:53.9]} 36. Rb6 {[%clk 0:00:15.8]} 36... e5 {[%clk 0:01:52.7]} 37. dxe5
{[%clk 0:00:16.5]} 37... Rxe5 {[%clk 0:01:46.9]} 38. Rxb5 {[%clk 0:00:15.7]}
38... Re1+ {[%clk 0:01:46.5]} 39. Kh2 {[%clk 0:00:15.9]} 39... Nh4 {[%clk
0:01:34.7]} 40. f4 {[%clk 0:00:05.2]} 40... Qd1 {[%clk 0:01:28.8]} 41. Qf2
{[%clk 0:00:04.5]} 41... Rh1+ {[%clk 0:01:25.7]} 42. Kg3 {[%clk 0:00:04.7]}
42... Nf5# {[%clk 0:01:26.6]} 0-1

[Event "*** Titled Tuesday Blitz"]
[Site "Chess.com"]
[Date "2021.03.16"]
[Round "1"]
[White "aa175"]
[Black "tgpgoat"]
[Result "1-0"]
[WhiteElo "2566"]
[BlackElo "2236"]
[TimeControl "180+1"]
[EndTime "10:06:14 PDT"]
[Termination "aa175 won by resignation"]

1. d4 {[%clk 0:03:00.9]} 1... Nf6 {[%clk 0:02:59.8]} 2. Nf3 {[%clk 0:03:00.3]}
2... c5 {[%clk 0:03:00]} 3. e3 {[%clk 0:02:59.3]} 3... cxd4 {[%clk 0:02:59.6]}
4. exd4 {[%clk 0:03:00.2]} 4... d5 {[%clk 0:03:00]} 5. Bd3 {[%clk 0:02:58]} 5...
e6 {[%clk 0:03:00.9]} 6. O-O {[%clk 0:02:56.9]} 6... Bd6 {[%clk 0:03:01.1]} 7.
Ne5 {[%clk 0:02:56.6]} 7... O-O {[%clk 0:03:01]} 8. f4 {[%clk 0:02:56.6]} 8...
Nc6 {[%clk 0:02:57]} 9. c3 {[%clk 0:02:55.6]} 9... Ne4 {[%clk 0:02:54.9]} 10.
Nd2 {[%clk 0:02:52.1]} 10... f5 {[%clk 0:02:54.1]} 11. Nxe4 {[%clk 0:02:49.4]}
11... fxe4 {[%clk 0:02:53.1]} 12. Bb5 {[%clk 0:02:47.9]} 12... Nxe5 {[%clk
0:02:52.6]} 13. fxe5 {[%clk 0:02:48.8]} 13... Bc7 {[%clk 0:02:44.8]} 14. Rxf8+
{[%clk 0:02:44.4]} 14... Qxf8 {[%clk 0:02:45.7]} 15. Be3 {[%clk 0:02:43.2]}
15... a6 {[%clk 0:02:42.7]} 16. Be2 {[%clk 0:02:36.3]} 16... Bd7 {[%clk
0:02:42.2]} 17. Qb3 {[%clk 0:02:35.1]} 17... b5 {[%clk 0:02:37.3]} 18. Rf1
{[%clk 0:02:34.7]} 18... Qe7 {[%clk 0:02:36.7]} 19. a4 {[%clk 0:02:28]} 19...
bxa4 {[%clk 0:02:27.1]} 20. Qb7 {[%clk 0:02:28.9]} 20... Qd8 {[%clk 0:02:26.7]}
21. c4 {[%clk 0:01:27.3]} 21... Rb8 {[%clk 0:02:11.1]} 22. Qxa6 {[%clk
0:01:26.7]} 22... Rxb2 {[%clk 0:01:58.6]} 23. cxd5 {[%clk 0:01:13.6]} 23... Bc8
{[%clk 0:01:52.3]} 24. Qc4 {[%clk 0:00:25.9]} 24... exd5 {[%clk 0:01:48.4]} 25.
Bg5 {[%clk 0:00:25.9]} 25... dxc4 {[%clk 0:01:40.7]} 26. Bxc4+ {[%clk
0:00:24.8]} 26... Kh8 {[%clk 0:01:30.5]} 27. Bxd8 {[%clk 0:00:24.6]} 27... h6
{[%clk 0:01:27.3]} 28. Bxc7 {[%clk 0:00:21.2]} 28... Kh7 {[%clk 0:01:24.8]} 29.
e6 {[%clk 0:00:20.6]} 29... Rc2 {[%clk 0:01:18.8]} 30. e7 {[%clk 0:00:18.7]}
30... Bd7 {[%clk 0:01:17.8]} 31. Be6 {[%clk 0:00:18.3]} 31... Bb5 {[%clk
0:01:12.2]} 32. Bd6 {[%clk 0:00:09.9]} 32... e3 {[%clk 0:01:09.3]} 33. Bf5+
{[%clk 0:00:09]} 33... g6 {[%clk 0:01:08.2]} 34. Bxc2 {[%clk 0:00:09.9]} 34...
e2 {[%clk 0:01:08.1]} 35. Rf7+ {[%clk 0:00:08.9]} 35... Kg8 {[%clk 0:01:07.2]}
36. Rf8+ {[%clk 0:00:08.9]} 36... Kg7 {[%clk 0:01:07.1]} 37. e8=N+ {[%clk
0:00:06.7]} 37... Bxe8 {[%clk 0:01:07.1]} 38. Rxe8 {[%clk 0:00:07.6]} 1-0

[Event "*** Titled Tuesday Blitz"]
[Site "Chess.com"]
[Date "2021.03.16"]
[Round "1"]
[White "PaulfromSPb"]
[Black "ErikRonka"]
[Result "1-0"]
[WhiteElo "2811"]
[BlackElo "2431"]
[TimeControl "180+1"]
[EndTime "10:06:15 PDT"]
[Termination "PaulfromSPb won by resignation"]

1. e4 {[%clk 0:03:00.9]} 1... c6 {[%clk 0:02:56.6]} 2. d4 {[%clk 0:02:47.6]}
2... d5 {[%clk 0:02:57.5]} 3. Nd2 {[%clk 0:02:46.1]} 3... dxe4 {[%clk 0:02:57]}
4. Nxe4 {[%clk 0:02:33.9]} 4... Bf5 {[%clk 0:02:56.5]} 5. Ng3 {[%clk 0:02:33.2]}
5... Bg6 {[%clk 0:02:55.3]} 6. h4 {[%clk 0:02:33]} 6... h6 {[%clk 0:02:52.4]} 7.
h5 {[%clk 0:02:33.9]} 7... Bh7 {[%clk 0:02:52]} 8. Nf3 {[%clk 0:02:34.6]} 8...
Nd7 {[%clk 0:02:49.5]} 9. Bd3 {[%clk 0:02:35.5]} 9... Bxd3 {[%clk 0:02:49.2]}
10. Qxd3 {[%clk 0:02:36.4]} 10... e6 {[%clk 0:02:49.5]} 11. c3 {[%clk
0:02:28.6]} 11... Ngf6 {[%clk 0:02:46.1]} 12. Bd2 {[%clk 0:02:27.4]} 12... c5
{[%clk 0:02:13.6]} 13. O-O {[%clk 0:02:26.2]} 13... cxd4 {[%clk 0:02:12.4]} 14.
Nxd4 {[%clk 0:02:27.1]} 14... Be7 {[%clk 0:02:10.3]} 15. Rae1 {[%clk 0:02:26]}
15... Qa5 {[%clk 0:01:46]} 16. b4 {[%clk 0:02:15.4]} 16... Qxa2 {[%clk
0:01:41.1]} 17. Ngf5 {[%clk 0:02:12.7]} 17... exf5 {[%clk 0:00:52.4]} 18. Nxf5
{[%clk 0:02:11.3]} 18... O-O {[%clk 0:00:46.2]} 19. Bxh6 {[%clk 0:02:07.4]}
19... Bd8 {[%clk 0:00:25.4]} 20. Bxg7 {[%clk 0:02:04.1]} 20... Qd5 {[%clk
0:00:20.6]} 21. Qg3 {[%clk 0:01:58.5]} 21... Bc7 {[%clk 0:00:17.5]} 22. Ne7+
{[%clk 0:01:56.2]} 22... Kh7 {[%clk 0:00:15.7]} 23. Nxd5 {[%clk 0:01:47.7]}
23... Bxg3 {[%clk 0:00:16.1]} 24. Nxf6+ {[%clk 0:01:46.8]} 24... Nxf6 {[%clk
0:00:17]} 25. Bxf6 {[%clk 0:01:46.7]} 25... Bc7 {[%clk 0:00:10.5]} 26. g4 {[%clk
0:01:41.6]} 26... Bb6 {[%clk 0:00:07.9]} 27. Kg2 {[%clk 0:01:41.2]} 27... a5
{[%clk 0:00:06.6]} 28. bxa5 {[%clk 0:01:39]} 28... Bxa5 {[%clk 0:00:06.7]} 29.
Rb1 {[%clk 0:01:35.5]} 29... b6 {[%clk 0:00:06]} 30. Rb5 {[%clk 0:01:34]} 30...
Rab8 {[%clk 0:00:06]} 31. Rg5 {[%clk 0:01:33.8]} 31... Rg8 {[%clk 0:00:05.4]}
32. Rxg8 {[%clk 0:01:33.1]} 32... Kxg8 {[%clk 0:00:06.3]} 33. Kf3 {[%clk
0:01:33.1]} 33... Rc8 {[%clk 0:00:06.7]} 34. Rc1 {[%clk 0:01:32.4]} 34... Rc4
{[%clk 0:00:06.3]} 35. Kg3 {[%clk 0:01:31.1]} 35... b5 {[%clk 0:00:06.1]} 36.
Ra1 {[%clk 0:01:22.5]} 36... Bc7+ {[%clk 0:00:04.9]} 37. Kh3 {[%clk 0:01:20.6]}
37... Rc6 {[%clk 0:00:02.3]} 38. Ra8+ {[%clk 0:01:20.3]} 1-0

[Event "*** Titled Tuesday Blitz"]
[Site "Chess.com"]
[Date "2021.03.16"]
[Round "1"]
[White "FMJoseHerrera"]
[Black "SimplyDevina"]
[Result "1-0"]
[WhiteElo "2549"]
[BlackElo "2208"]
[TimeControl "180+1"]
[EndTime "10:06:17 PDT"]
[Termination "FMJoseHerrera won by resignation"]

1. Nf3 {[%clk 0:02:55.1]} 1... d5 {[%clk 0:02:54.2]} 2. g3 {[%clk 0:02:54.2]}
2... Nf6 {[%clk 0:02:44.5]} 3. Bg2 {[%clk 0:02:53.4]} 3... c5 {[%clk 0:02:42.6]}
4. O-O {[%clk 0:02:46.1]} 4... Nc6 {[%clk 0:02:36.4]} 5. c4 {[%clk 0:02:42.3]}
5... e6 {[%clk 0:02:29.7]} 6. cxd5 {[%clk 0:02:41.1]} 6... exd5 {[%clk
0:02:26.8]} 7. d4 {[%clk 0:02:40.8]} 7... Be7 {[%clk 0:02:15.9]} 8. Nc3 {[%clk
0:02:32.8]} 8... O-O {[%clk 0:02:14]} 9. Bg5 {[%clk 0:02:30.5]} 9... Be6 {[%clk
0:02:11.5]} 10. Qa4 {[%clk 0:02:23.6]} 10... c4 {[%clk 0:01:52.7]} 11. Rad1
{[%clk 0:02:19.1]} 11... a6 {[%clk 0:01:22.2]} 12. Qc2 {[%clk 0:02:03.6]} 12...
b5 {[%clk 0:01:10.7]} 13. Bxf6 {[%clk 0:01:51.9]} 13... Bxf6 {[%clk 0:01:11.6]}
14. e4 {[%clk 0:01:52.5]} 14... b4 {[%clk 0:01:04.3]} 15. exd5 {[%clk
0:01:43.1]} 15... bxc3 {[%clk 0:00:34.9]} 16. dxe6 {[%clk 0:01:36.3]} 16... cxb2
{[%clk 0:00:31.7]} 17. Qxc4 {[%clk 0:01:32.4]} 17... Na5 {[%clk 0:00:28.6]} 18.
Qc2 {[%clk 0:01:19]} 18... Rb8 {[%clk 0:00:26.4]} 19. exf7+ {[%clk 0:01:10.6]}
19... Kh8 {[%clk 0:00:26.5]} 20. Ne5 {[%clk 0:01:07.1]} 20... Bxe5 {[%clk
0:00:19.7]} 21. dxe5 {[%clk 0:01:07.1]} 21... Qe7 {[%clk 0:00:20.3]} 22. Qa4
{[%clk 0:00:56.1]} 22... Qxe5 {[%clk 0:00:10.8]} 23. Rfe1 {[%clk 0:00:51.9]}
23... Qxe1+ {[%clk 0:00:04.6]} 24. Rxe1 {[%clk 0:00:49.1]} 24... b1=Q {[%clk
0:00:05.1]} 25. Rxb1 {[%clk 0:00:48.7]} 25... Rxb1+ {[%clk 0:00:04.8]} 26. Bf1
{[%clk 0:00:49.4]} 26... Nb7 {[%clk 0:00:02.4]} 27. Qe4 {[%clk 0:00:49.3]} 27...
Nd6 {[%clk 0:00:02.2]} 28. Qxb1 {[%clk 0:00:48.9]} 1-0

[Event "*** Titled Tuesday Blitz"]
[Site "Chess.com"]
[Date "2021.03.16"]
[Round "1"]
[White "mjray79"]
[Black "dretch"]
[Result "0-1"]
[WhiteElo "2453"]
[BlackElo "2852"]
[TimeControl "180+1"]
[EndTime "10:06:18 PDT"]
[Termination "dretch won by resignation"]

1. d4 {[%clk 0:03:00.9]} 1... d5 {[%clk 0:02:58.1]} 2. c4 {[%clk 0:03:01.1]}
2... c6 {[%clk 0:02:58.2]} 3. Nf3 {[%clk 0:03:00.8]} 3... Nf6 {[%clk 0:02:56.6]}
4. Nc3 {[%clk 0:03:00.4]} 4... dxc4 {[%clk 0:02:56.8]} 5. a4 {[%clk 0:02:59.6]}
5... Bf5 {[%clk 0:02:56.6]} 6. Ne5 {[%clk 0:02:56.8]} 6... Nbd7 {[%clk
0:02:56.6]} 7. Nxc4 {[%clk 0:02:56.8]} 7... Nb6 {[%clk 0:02:56.9]} 8. Ne5 {[%clk
0:02:55]} 8... a5 {[%clk 0:02:54.9]} 9. f3 {[%clk 0:02:47.6]} 9... Nfd7 {[%clk
0:02:54.1]} 10. Nxd7 {[%clk 0:02:36.9]} 10... Nxd7 {[%clk 0:02:52.7]} 11. e4
{[%clk 0:02:36.9]} 11... Bg6 {[%clk 0:02:53.3]} 12. Be3 {[%clk 0:02:35.3]} 12...
e6 {[%clk 0:02:51.7]} 13. Be2 {[%clk 0:02:33.9]} 13... Bb4 {[%clk 0:02:50.3]}
14. O-O {[%clk 0:02:33.6]} 14... O-O {[%clk 0:02:50.3]} 15. Rc1 {[%clk
0:02:21.8]} 15... Qe7 {[%clk 0:02:44.9]} 16. Qb3 {[%clk 0:02:21.4]} 16... Rfb8
{[%clk 0:02:44.4]} 17. Rfd1 {[%clk 0:02:12.1]} 17... Kh8 {[%clk 0:02:39.7]} 18.
Bf2 {[%clk 0:02:04.8]} 18... f6 {[%clk 0:02:37.8]} 19. Bc4 {[%clk 0:02:04]}
19... Bf7 {[%clk 0:02:36.3]} 20. d5 {[%clk 0:01:52.2]} 20... exd5 {[%clk
0:02:37.2]} 21. exd5 {[%clk 0:01:52.4]} 21... Ne5 {[%clk 0:02:37.7]} 22. Re1
{[%clk 0:01:31.7]} 22... Bc5 {[%clk 0:02:30.8]} 23. Ne4 {[%clk 0:01:19.7]} 23...
Bxf2+ {[%clk 0:02:27.3]} 24. Nxf2 {[%clk 0:01:20.6]} 24... b5 {[%clk 0:02:22.8]}
25. axb5 {[%clk 0:01:16.8]} 25... cxb5 {[%clk 0:02:21.3]} 26. Bxb5 {[%clk
0:01:14.8]} 26... Qb7 {[%clk 0:02:11.3]} 27. f4 {[%clk 0:01:02.6]} 27... Bxd5
{[%clk 0:02:08.7]} 28. Qa4 {[%clk 0:00:57.7]} 28... Ng6 {[%clk 0:01:52.5]} 29.
g3 {[%clk 0:00:48.2]} 29... Nf8 {[%clk 0:01:34.9]} 30. Bd3 {[%clk 0:00:37.2]}
30... Qxb2 {[%clk 0:01:26]} 31. Rb1 {[%clk 0:00:37.5]} 31... Qc3 {[%clk
0:01:22.8]} 32. Rec1 {[%clk 0:00:37.6]} 32... Rxb1 {[%clk 0:01:21.8]} 33. Rxb1
{[%clk 0:00:38.5]} 33... Bc6 {[%clk 0:01:16]} 34. Qa2 {[%clk 0:00:33.6]} 34...
a4 {[%clk 0:01:12.8]} 35. Bc4 {[%clk 0:00:27.7]} 35... Qf3 {[%clk 0:01:10.1]}
36. Kf1 {[%clk 0:00:25.9]} 36... Re8 {[%clk 0:01:05.8]} 37. Be2 {[%clk
0:00:20.2]} 37... Qg2+ {[%clk 0:01:02]} 38. Ke1 {[%clk 0:00:20.6]} 38... Qg1+
{[%clk 0:01:01.8]} 39. Kd2 {[%clk 0:00:19.3]} 39... Qxf2 {[%clk 0:01:01.7]} 0-1

[Event "*** Titled Tuesday Blitz"]
[Site "Chess.com"]
[Date "2021.03.16"]
[Round "1"]
[White "Ural_bogatyr"]
[Black "Trovita84"]
[Result "1-0"]
[WhiteElo "2505"]
[BlackElo "2079"]
[TimeControl "180+1"]
[EndTime "10:06:21 PDT"]
[Termination "Ural_bogatyr won on time"]

1. e4 {[%clk 0:03:00.9]} 1... c6 {[%clk 0:02:54.6]} 2. d4 {[%clk 0:03:00.6]}
2... d5 {[%clk 0:02:51.3]} 3. e5 {[%clk 0:03:00.6]} 3... Bf5 {[%clk 0:02:51.3]}
4. Ne2 {[%clk 0:03:00.2]} 4... e6 {[%clk 0:02:51.4]} 5. Ng3 {[%clk 0:03:00.4]}
5... Bg6 {[%clk 0:02:51.5]} 6. h4 {[%clk 0:03:00.9]} 6... h5 {[%clk 0:02:51.3]}
7. Be2 {[%clk 0:03:00]} 7... Nd7 {[%clk 0:02:46.4]} 8. Nxh5 {[%clk 0:02:44.7]}
8... Bxh5 {[%clk 0:02:45.5]} 9. Bxh5 {[%clk 0:02:44.2]} 9... g6 {[%clk
0:02:46.4]} 10. Bf3 {[%clk 0:02:40.8]} 10... Rxh4 {[%clk 0:02:44.8]} 11. Rxh4
{[%clk 0:02:38.4]} 11... Qxh4 {[%clk 0:02:45.7]} 12. g3 {[%clk 0:02:38.8]} 12...
Qh2 {[%clk 0:02:35.8]} 13. Kf1 {[%clk 0:02:32.4]} 13... Ne7 {[%clk 0:02:33]} 14.
Nc3 {[%clk 0:02:25.2]} 14... Nf5 {[%clk 0:02:20.9]} 15. Ne2 {[%clk 0:02:24.9]}
15... Be7 {[%clk 0:00:54]} 16. c3 {[%clk 0:01:47.1]} 16... O-O-O {[%clk
0:00:50.8]} 17. Bf4 {[%clk 0:01:41.3]} 17... Rh8 {[%clk 0:00:46.4]} 18. Qd2
{[%clk 0:01:39.9]} 18... Rg8 {[%clk 0:00:39.4]} 19. Bg5 {[%clk 0:01:38.4]} 19...
Bxg5 {[%clk 0:00:34.6]} 20. Qxg5 {[%clk 0:01:39.3]} 20... c5 {[%clk 0:00:29.8]}
21. Rc1 {[%clk 0:01:34.1]} 21... Kb8 {[%clk 0:00:27.4]} 22. b4 {[%clk
0:01:32.4]} 22... cxb4 {[%clk 0:00:24]} 23. cxb4 {[%clk 0:01:32.1]} 23... Nb6
{[%clk 0:00:23.4]} 24. Qf6 {[%clk 0:01:21.2]} 24... Qh7 {[%clk 0:00:15.4]} 25.
g4 {[%clk 0:01:13.5]} 25... Nh4 {[%clk 0:00:13.8]} 26. Bh1 {[%clk 0:01:05.4]}
26... g5 {[%clk 0:00:13.9]} 27. Qe7 {[%clk 0:00:59.2]} 27... Qd3 {[%clk
0:00:03.8]} 28. Qxf7 {[%clk 0:00:55]} 1-0